fUST/lending_fUST_20260519
["ID","MTS","AMOUNT","RATE_DAILY","PERIOD"]
[422587043,1779126643000,-773.22,9.589e-05,2]
[422587027,1779126643000,-500.0,9.589e-05,2]
[422587029,1779126643000,-632.79496888,9.589e-05,2]
[422587026,1779126643000,-500.0,9.589e-05,2]
[422587028,1779126643000,-677.74,9.589e-05,2]
[422587023,1779126643000,-500.0,9.589e-05,2]
[422587022,1779126643000,-500.0,9.589e-05,2]
[422587025,1779126643000,-500.0,9.589e-05,2]
[422587024,1779126643000,-500.0,9.589e-05,2]
[422587045,1779126643000,-501.05,9.589e-05,2]
[422587031,1779126643000,-744.09,9.589e-05,2]
[422587036,1779126643000,-1324.54,9.589e-05,2]
[422587037,1779126643000,-500.0,9.589e-05,2]
[422587035,1779126643000,-500.0,9.589e-05,2]
[422587038,1779126643000,-500.0,9.589e-05,2]
[422587034,1779126643000,-531.55,9.589e-05,2]
[422587032,1779126643000,-500.0,9.589e-05,2]
[422587047,1779126643000,-790.37,9.589e-05,2]
[422587040,1779126643000,-500.0,9.589e-05,2]
[422587033,1779126643000,-862.47,9.589e-05,2]
[422587073,1779126643000,-1470.57,9.589e-05,2]
[422587065,1779126643000,-4078.33,9.589e-05,2]
[422587069,1779126643000,-855.14,9.589e-05,2]
[422587098,1779126643000,-1144.39,9.589e-05,2]
[422587091,1779126643000,-500.0,9.589e-05,2]
[422587100,1779126643000,-500.0,9.589e-05,2]
[422587093,1779126643000,-1467.78,9.589e-05,2]
[422587095,1779126643000,-500.0,9.589e-05,2]
[422587094,1779126643000,-3525.73,9.589e-05,2]
[422587096,1779126643000,-3150.84,9.589e-05,2]
[422587092,1779126643000,-525.40157838,9.589e-05,2]
[422587090,1779126643000,-4963.44,9.589e-05,2]
[422587102,1779126643000,-500.0,9.589e-05,2]
[422587101,1779126643000,-623.59,9.589e-05,2]
[422587105,1779126643000,-1393.27389609,9.589e-05,2]
[422587108,1779126643000,-23281.04998396,9.589e-05,2]
[422587110,1779126643000,-1310.28,9.589e-05,2]
[422587109,1779126643000,-1710.54,9.589e-05,2]
[422587111,1779126643000,-3648.11,9.589e-05,2]
[422587112,1779126643000,-1107.11,9.589e-05,2]
[422587067,1779126643000,-500.0,9.589e-05,2]
[422587103,1779126643000,-2288.18,9.589e-05,2]
[422587099,1779126643000,-500.0,9.589e-05,2]
[422587104,1779126643000,-453.98611995,9.589e-05,2]
[422587097,1779126643000,-709.25,9.589e-05,2]
[422587089,1779126643000,-1446.65,9.589e-05,2]
[422587070,1779126643000,-571.26,9.589e-05,2]
[422587068,1779126643000,-511.49,9.589e-05,2]
[422587072,1779126643000,-846.44,9.589e-05,2]
[422587071,1779126643000,-1801.96,9.589e-05,2]
[422587076,1779126643000,-1671.48,9.589e-05,2]
[422587075,1779126643000,-500.0,9.589e-05,2]
[422587077,1779126643000,-1603.64,9.589e-05,2]
[422587079,1779126643000,-505.3,9.589e-05,2]
[422587074,1779126643000,-500.0,9.589e-05,2]
[422587087,1779126643000,-357.2480856,9.589e-05,2]
[422587085,1779126643000,-500.0,9.589e-05,2]
[422587083,1779126643000,-530.12,9.589e-05,2]
[422587080,1779126643000,-500.0,9.589e-05,2]
[422587081,1779126643000,-295.80030459,9.589e-05,2]
[422587078,1779126643000,-500.0,9.589e-05,2]
[422587082,1779126643000,-1508.01,9.589e-05,2]
[422587084,1779126643000,-2917.5,9.589e-05,2]
[422587086,1779126643000,-1224.87,9.589e-05,2]
[422587088,1779126643000,-1325.17,9.589e-05,2]
[422587154,1779126644000,-500.0,9.863e-05,2]
[422587161,1779126644000,-500.0,9.863e-05,2]
[422587153,1779126644000,-500.0,9.863e-05,2]
[422587158,1779126644000,-677.74,9.863e-05,2]
[422587151,1779126644000,-531.81,9.863e-05,2]
[422587139,1779126644000,-500.0,9.863e-05,2]
[422587145,1779126644000,-749.63,9.863e-05,2]
[422587144,1779126644000,-500.0,9.863e-05,2]
[422587148,1779126644000,-773.64,9.863e-05,2]
[422587155,1779126644000,-500.0,9.863e-05,2]
[422587146,1779126644000,-500.0,9.863e-05,2]
[422587150,1779126644000,-500.0,9.863e-05,2]
[422587152,1779126644000,-500.0,9.863e-05,2]
[422587167,1779126644000,-283.052523,9.863e-05,2]
[422587156,1779126644000,-500.0,9.863e-05,2]
[422587160,1779126644000,-744.09,9.863e-05,2]
[422587159,1779126644000,-500.0,9.863e-05,2]
[422587163,1779126644000,-531.55,9.863e-05,2]
[422587162,1779126644000,-862.47,9.863e-05,2]
[422587164,1779126644000,-500.0,9.863e-05,2]
[422587165,1779126644000,-1324.54,9.863e-05,2]
[422587166,1779126644000,-500.0,9.863e-05,2]
[422587170,1779126644000,-578.78,9.863e-05,2]
[422587171,1779126644000,-773.22,9.863e-05,2]
[422587172,1779126644000,-501.05,9.863e-05,2]
[422587169,1779126644000,-500.0,9.863e-05,2]
[422587138,1779126644000,-500.0,9.863e-05,2]
[422587157,1779126644000,-500.0,9.863e-05,2]
[422587149,1779126644000,-500.0,9.863e-05,2]
[422587118,1779126644000,-1408.0,9.589e-05,2]
[422587142,1779126644000,-500.0,9.863e-05,2]
[422587120,1779126644000,-500.0,9.589e-05,2]
[422587121,1779126644000,-1577.7,9.589e-05,2]
[422587113,1779126644000,-1126.76,9.589e-05,2]
[422587116,1779126644000,-529.83,9.589e-05,2]
[422587119,1779126644000,-500.0,9.589e-05,2]
[422587114,1779126644000,-649.66,9.589e-05,2]
[422587115,1779126644000,-2185.44,9.589e-05,2]
[422587117,1779126644000,-1561.4,9.589e-05,2]
[422587168,1779126644000,-359.68824079,9.863e-05,2]
[422587124,1779126644000,-752.11,9.589e-05,2]
[422587122,1779126644000,-3852.63,9.589e-05,2]
[422587126,1779126644000,-1712.54,9.589e-05,2]
[422587125,1779126644000,-500.0,9.589e-05,2]
[422587143,1779126644000,-685.83,9.863e-05,2]
[422587127,1779126644000,-1071.65,9.589e-05,2]
[422587128,1779126644000,-500.0,9.589e-05,2]
[422587134,1779126644000,-2176.6725,9.863e-05,2]
[422587132,1779126644000,-2219.59,9.589e-05,2]
[422587129,1779126644000,-500.0,9.589e-05,2]
[422587123,1779126644000,-1600.63,9.589e-05,2]
[422587130,1779126644000,-500.0,9.589e-05,2]
[422587133,1779126644000,-152.0,9.827e-05,7]
[422587135,1779126644000,-500.0,9.863e-05,2]
[422587147,1779126644000,-500.0,9.863e-05,2]
[422587136,1779126644000,-386.69537798,9.863e-05,2]
[422587141,1779126644000,-500.0,9.863e-05,2]
[422587140,1779126644000,-500.0,9.863e-05,2]
[422587137,1779126644000,-670.34,9.863e-05,2]
[422587131,1779126644000,-3919.96,9.589e-05,2]
[422587174,1779126644000,-500.0,9.863e-05,2]
[422587173,1779126644000,-790.37,9.863e-05,2]
[422587175,1779126644000,-500.0,9.863e-05,2]
[422587206,1779126644000,-1508.01,9.863e-05,2]
[422587209,1779126644000,-2917.5,9.863e-05,2]
[422587210,1779126644000,-1224.87,9.863e-05,2]
[422587208,1779126644000,-500.0,9.863e-05,2]
[422587214,1779126644000,-500.0,9.863e-05,2]
[422587213,1779126644000,-4963.44,9.863e-05,2]
[422587216,1779126644000,-3525.73,9.863e-05,2]
[422587215,1779126644000,-1467.78,9.863e-05,2]
[422587218,1779126644000,-3150.84,9.863e-05,2]
[422587220,1779126644000,-1144.39,9.863e-05,2]
[422587217,1779126644000,-500.0,9.863e-05,2]
[422587221,1779126644000,-500.0,9.863e-05,2]
[422587222,1779126644000,-500.0,9.863e-05,2]
[422587207,1779126644000,-530.12,9.863e-05,2]
[422587223,1779126644000,-623.59,9.863e-05,2]
[422587234,1779126644000,-529.83,9.863e-05,2]
[422587224,1779126644000,-553.03265891,9.863e-05,2]
[422587227,1779126644000,-1710.54,9.863e-05,2]
[422587225,1779126644000,-2288.18,9.863e-05,2]
[422587226,1779126644000,-25128.31,9.863e-05,2]
[422587228,1779126644000,-1310.28,9.863e-05,2]
[422587233,1779126644000,-2185.44,9.863e-05,2]
[422587231,1779126644000,-1126.76,9.863e-05,2]
[422587229,1779126644000,-3648.11,9.863e-05,2]
[422587230,1779126644000,-1107.11,9.863e-05,2]
[422587235,1779126644000,-1561.4,9.863e-05,2]
[422587176,1779126644000,-500.0,9.863e-05,2]
[422587236,1779126644000,-1408.0,9.863e-05,2]
[422587232,1779126644000,-649.66,9.863e-05,2]
[422587212,1779126644000,-1446.65,9.863e-05,2]
[422587219,1779126644000,-709.25,9.863e-05,2]
[422587211,1779126644000,-1325.17,9.863e-05,2]
[422587186,1779126644000,-916.65,9.863e-05,2]
[422587204,1779126644000,-505.3,9.863e-05,2]
[422587177,1779126644000,-500.0,9.863e-05,2]
[422587178,1779126644000,-1439.24,9.863e-05,2]
[422587179,1779126644000,-943.13,9.863e-05,2]
[422587180,1779126644000,-623.82585747,9.863e-05,2]
[422587187,1779126644000,-500.0,9.863e-05,2]
[422587182,1779126644000,-500.0,9.863e-05,2]
[422587185,1779126644000,-500.0,9.863e-05,2]
[422587184,1779126644000,-500.0,9.863e-05,2]
[422587183,1779126644000,-601.33,9.863e-05,2]
[422587181,1779126644000,-657.48,9.863e-05,2]
[422587201,1779126644000,-1671.48,9.863e-05,2]
[422587197,1779126644000,-1470.57,9.863e-05,2]
[422587198,1779126644000,-846.44,9.863e-05,2]
[422587193,1779126644000,-511.49,9.863e-05,2]
[422587189,1779126644000,-500.0,9.863e-05,2]
[422587200,1779126644000,-500.0,9.863e-05,2]
[422587192,1779126644000,-500.0,9.863e-05,2]
[422587205,1779126644000,-500.0,9.863e-05,2]
[422587188,1779126644000,-1302.29,9.863e-05,2]
[422587194,1779126644000,-855.14,9.863e-05,2]
[422587195,1779126644000,-571.26,9.863e-05,2]
[422587199,1779126644000,-500.0,9.863e-05,2]
[422587190,1779126644000,-4078.33,9.863e-05,2]
[422587191,1779126644000,-1316.79,9.863e-05,2]
[422587196,1779126644000,-1801.96,9.863e-05,2]
[422587202,1779126644000,-1603.64,9.863e-05,2]
[422587203,1779126644000,-500.0,9.863e-05,2]
[422587279,1779126645000,-677.74,0.00010136,2]
[422587283,1779126645000,-862.47,0.00010136,2]
[422587282,1779126645000,-602.70740816,0.00010136,2]
[422587281,1779126645000,-744.09,0.00010136,2]
[422587278,1779126645000,-500.0,0.00010136,2]
[422587269,1779126645000,-773.64,0.00010136,2]
[422587286,1779126645000,-1324.54,0.00010136,2]
[422587285,1779126645000,-500.0,0.00010136,2]
[422587275,1779126645000,-500.0,0.00010136,2]
[422587271,1779126645000,-500.0,0.00010136,2]
[422587284,1779126645000,-531.55,0.00010136,2]
[422587270,1779126645000,-500.0,0.00010136,2]
[422587277,1779126645000,-500.0,0.00010136,2]
[422587274,1779126645000,-600.68894587,0.00010136,2]
[422587297,1779126645000,-1439.24,0.00010136,2]
[422587276,1779126645000,-500.0,0.00010136,2]
[422587287,1779126645000,-500.0,0.00010136,2]
[422587289,1779126645000,-578.78,0.00010136,2]
[422587291,1779126645000,-501.05,0.00010136,2]
[422587299,1779126645000,-657.48,0.00010136,2]
[422587298,1779126645000,-943.13,0.00010136,2]
[422587290,1779126645000,-773.22,0.00010136,2]
[422587288,1779126645000,-500.0,0.00010136,2]
[422587300,1779126645000,-500.0,0.00010136,2]
[422587292,1779126645000,-790.37,0.00010136,2]
[422587294,1779126645000,-500.0,0.00010136,2]
[422587296,1779126645000,-500.0,0.00010136,2]
[422587293,1779126645000,-356.44520114,0.00010136,2]
[422587266,1779126645000,-749.63,0.00010136,2]
[422587280,1779126645000,-500.0,0.00010136,2]
[422587267,1779126645000,-453.77426848,0.00010136,2]
[422587238,1779126645000,-167.98444564,9.863e-05,2]
[422587265,1779126645000,-500.0,0.00010136,2]
[422587295,1779126645000,-500.0,0.00010136,2]
[422587237,1779126645000,-500.0,9.863e-05,2]
[422587239,1779126645000,-1577.7,9.863e-05,2]
[422587240,1779126645000,-3852.63,9.863e-05,2]
[422587241,1779126645000,-1600.63,9.863e-05,2]
[422587242,1779126645000,-752.11,9.863e-05,2]
[422587244,1779126645000,-1712.54,9.863e-05,2]
[422587246,1779126645000,-500.0,9.863e-05,2]
[422587245,1779126645000,-1071.65,9.863e-05,2]
[422587243,1779126645000,-500.0,9.863e-05,2]
[422587247,1779126645000,-500.0,9.863e-05,2]
[422587249,1779126645000,-3919.96,9.863e-05,2]
[422587259,1779126645000,-500.0,0.00010136,2]
[422587260,1779126645000,-500.0,0.00010136,2]
[422587268,1779126645000,-500.0,0.00010136,2]
[422587251,1779126645000,-203.01719538,9.871e-05,2]
[422587252,1779126645000,-107510.21421388,9.907e-05,2]
[422587254,1779126645000,-330.33891382,0.00010116,2]
[422587248,1779126645000,-500.0,9.863e-05,2]
[422587253,1779126645000,-238.11562226,9.997e-05,2]
[422587255,1779126645000,-238.86825895,0.00010116,2]
[422587256,1779126645000,-1868.3444,0.00010136,2]
[422587258,1779126645000,-670.34,0.00010136,2]
[422587257,1779126645000,-500.0,0.00010136,2]
[422587272,1779126645000,-531.81,0.00010136,2]
[422587262,1779126645000,-517.14410502,0.00010136,2]
[422587263,1779126645000,-500.0,0.00010136,2]
[422587261,1779126645000,-500.0,0.00010136,2]
[422587273,1779126645000,-500.0,0.00010136,2]
[422587264,1779126645000,-685.83,0.00010136,2]
[422587250,1779126645000,-2219.59,9.863e-05,2]
[422587302,1779126645000,-500.0,0.00010136,2]
[422587346,1779126645000,-3648.11,0.00010136,2]
[422587301,1779126645000,-601.33,0.00010136,2]
[422587338,1779126645000,-1144.39,0.00010136,2]
[422587336,1779126645000,-3150.84,0.00010136,2]
[422587340,1779126645000,-500.0,0.00010136,2]
[422587342,1779126645000,-2288.18,0.00010136,2]
[422587352,1779126645000,-1561.4,0.00010136,2]
[422587353,1779126645000,-1408.0,0.00010136,2]
[422587354,1779126645000,-500.0,0.00010136,2]
[422587341,1779126645000,-623.59,0.00010136,2]
[422587345,1779126645000,-1310.28,0.00010136,2]
[422587344,1779126645000,-1710.54,0.00010136,2]
[422587343,1779126645000,-25128.31,0.00010136,2]
[422587349,1779126645000,-649.66,0.00010136,2]
[422587348,1779126645000,-1126.76,0.00010136,2]
[422587347,1779126645000,-1107.11,0.00010136,2]
[422587339,1779126645000,-500.0,0.00010136,2]
[422587350,1779126645000,-2185.44,0.00010136,2]
[422587357,1779126645000,-1600.63,0.00010136,2]
[422587356,1779126645000,-3852.63,0.00010136,2]
[422587361,1779126645000,-1071.65,0.00010136,2]
[422587359,1779126645000,-500.0,0.00010136,2]
[422587358,1779126645000,-752.11,0.00010136,2]
[422587363,1779126645000,-500.0,0.00010136,2]
[422587364,1779126645000,-500.0,0.00010136,2]
[422587360,1779126645000,-1712.54,0.00010136,2]
[422587362,1779126645000,-500.0,0.00010136,2]
[422587368,1779126645000,-1102.62242678,0.00010219,2]
[422587366,1779126645000,-2219.59,0.00010136,2]
[422587367,1779126645000,-185.8852,0.00010136,2]
[422587365,1779126645000,-3919.96,0.00010136,2]
[422587312,1779126645000,-855.14,0.00010136,2]
[422587355,1779126645000,-1577.7,0.00010136,2]
[422587334,1779126645000,-3525.73,0.00010136,2]
[422587351,1779126645000,-529.83,0.00010136,2]
[422587330,1779126645000,-1446.65,0.00010136,2]
[422587313,1779126645000,-571.26,0.00010136,2]
[422587305,1779126645000,-500.0,0.00010136,2]
[422587333,1779126645000,-1467.78,0.00010136,2]
[422587310,1779126645000,-500.0,0.00010136,2]
[422587303,1779126645000,-500.0,0.00010136,2]
[422587311,1779126645000,-511.49,0.00010136,2]
[422587304,1779126645000,-916.65,0.00010136,2]
[422587308,1779126645000,-4078.33,0.00010136,2]
[422587307,1779126645000,-647.50801676,0.00010136,2]
[422587306,1779126645000,-1302.29,0.00010136,2]
[422587314,1779126645000,-1801.96,0.00010136,2]
[422587315,1779126645000,-1470.57,0.00010136,2]
[422587318,1779126645000,-500.0,0.00010136,2]
[422587316,1779126645000,-846.44,0.00010136,2]
[422587321,1779126645000,-500.0,0.00010136,2]
[422587309,1779126645000,-1316.79,0.00010136,2]
[422587317,1779126645000,-500.0,0.00010136,2]
[422587319,1779126645000,-1671.48,0.00010136,2]
[422587331,1779126645000,-4963.44,0.00010136,2]
[422587337,1779126645000,-709.25,0.00010136,2]
[422587329,1779126645000,-1325.17,0.00010136,2]
[422587332,1779126645000,-203.11711603,0.00010136,2]
[422587327,1779126645000,-2917.5,0.00010136,2]
[422587328,1779126645000,-1224.87,0.00010136,2]
[422587335,1779126645000,-500.0,0.00010136,2]
[422587325,1779126645000,-530.12,0.00010136,2]
[422587320,1779126645000,-1603.64,0.00010136,2]
[422587326,1779126645000,-500.0,0.00010136,2]
[422587322,1779126645000,-505.3,0.00010136,2]
[422587323,1779126645000,-500.0,0.00010136,2]
[422587324,1779126645000,-1508.01,0.00010136,2]
[422587381,1779126646000,-500.0,0.0001041,2]
[422587384,1779126646000,-500.0,0.0001041,2]
[422587390,1779126646000,-553.57682103,0.0001041,2]
[422587389,1779126646000,-500.0,0.0001041,2]
[422587386,1779126646000,-500.0,0.0001041,2]
[422587387,1779126646000,-500.0,0.0001041,2]
[422587388,1779126646000,-500.0,0.0001041,2]
[422587393,1779126646000,-744.09,0.0001041,2]
[422587391,1779126646000,-677.74,0.0001041,2]
[422587383,1779126646000,-272.67125557,0.0001041,2]
[422587385,1779126646000,-531.81,0.0001041,2]
[422587382,1779126646000,-773.64,0.0001041,2]
[422587394,1779126646000,-862.47,0.0001041,2]
[422587369,1779126646000,-27973.29733295,0.000104,2]
[422587379,1779126646000,-500.0,0.0001041,2]
[422587374,1779126646000,-500.0,0.0001041,2]
[422587380,1779126646000,-749.63,0.0001041,2]
[422587377,1779126646000,-500.0,0.0001041,2]
[422587373,1779126646000,-670.34,0.0001041,2]
[422587370,1779126646000,-56226.5586528,0.000104,2]
[422587371,1779126646000,-1868.3444,0.0001041,2]
[422587376,1779126646000,-317.48783413,0.0001041,2]
[422587375,1779126646000,-500.0,0.0001041,2]
[422587378,1779126646000,-685.83,0.0001041,2]
[422587372,1779126646000,-500.0,0.0001041,2]
[422587396,1779126646000,-500.0,0.0001041,2]
[422587392,1779126646000,-500.0,0.0001041,2]
[422587407,1779126646000,-1439.24,0.0001041,2]
[422587448,1779126646000,-500.0,0.0001041,2]
[422587397,1779126646000,-1324.54,0.0001041,2]
[422587458,1779126646000,-846.44,0.0001041,2]
[422587454,1779126646000,-1801.96,0.0001041,2]
[422587456,1779126646000,-1470.57,0.0001041,2]
[422587437,1779126646000,-500.0,0.0001041,2]
[422587450,1779126646000,-855.14,0.0001041,2]
[422587452,1779126646000,-571.26,0.0001041,2]
[422587406,1779126646000,-500.0,0.0001041,2]
[422587444,1779126646000,-4078.33,0.0001041,2]
[422587442,1779126646000,-1302.29,0.0001041,2]
[422587439,1779126646000,-916.65,0.0001041,2]
[422587440,1779126646000,-500.0,0.0001041,2]
[422587435,1779126646000,-500.0,0.0001041,2]
[422587433,1779126646000,-37.91540406,0.0001041,2]
[422587446,1779126646000,-1316.79,0.0001041,2]
[422587412,1779126646000,-563.41459594,0.0001041,2]
[422587411,1779126646000,-500.0,0.0001041,2]
[422587399,1779126646000,-500.0,0.0001041,2]
[422587395,1779126646000,-531.55,0.0001041,2]
[422587398,1779126646000,-500.0,0.0001041,2]
[422587400,1779126646000,-578.78,0.0001041,2]
[422587403,1779126646000,-790.37,0.0001041,2]
[422587405,1779126646000,-500.0,0.0001041,2]
[422587404,1779126646000,-500.0,0.0001041,2]
[422587401,1779126646000,-773.22,0.0001041,2]
[422587408,1779126646000,-277.44771854,0.0001041,2]
[422587410,1779126646000,-657.48,0.0001041,2]
[422587409,1779126646000,-665.68228146,0.0001041,2]
[422587402,1779126646000,-501.05,0.0001041,2]
[422587472,1779126647000,-500.0,0.0001041,2]
[422587486,1779126647000,-824.4449059,0.0001041,2]
[422587496,1779126647000,-500.0,0.0001041,2]
[422587470,1779126647000,-505.3,0.0001041,2]
[422587468,1779126647000,-500.0,0.0001041,2]
[422587481,1779126647000,-500.7250941,0.0001041,2]
[422587462,1779126647000,-500.0,0.0001041,2]
[422587464,1779126647000,-1671.48,0.0001041,2]
[422587477,1779126647000,-500.0,0.0001041,2]
[422587480,1779126647000,-1224.87,0.0001041,2]
[422587478,1779126647000,-2917.5,0.0001041,2]
[422587497,1779126647000,-623.59,0.0001041,2]
[422587460,1779126647000,-500.0,0.0001041,2]
[422587466,1779126647000,-1603.64,0.0001041,2]
[422587487,1779126647000,-1446.65,0.0001041,2]
[422587473,1779126647000,-1508.01,0.0001041,2]
[422587491,1779126647000,-500.0,0.0001041,2]
[422587499,1779126647000,-10477.62782327,0.0001041,2]
[422587504,1779126647000,-3648.11,0.0001041,2]
[422587505,1779126647000,-1107.11,0.0001041,2]
[422587506,1779126647000,-575.42428485,0.0001041,2]
[422587503,1779126647000,-1310.28,0.0001041,2]
[422587500,1779126647000,-14650.68217673,0.0001041,2]
[422587502,1779126647000,-1710.54,0.0001041,2]
[422587475,1779126647000,-530.12,0.0001041,2]
[422587488,1779126647000,-4963.44,0.0001041,2]
[422587492,1779126647000,-3150.84,0.0001041,2]
[422587489,1779126647000,-1467.78,0.0001041,2]
[422587494,1779126647000,-1144.39,0.0001041,2]
[422587495,1779126647000,-500.0,0.0001041,2]
[422587490,1779126647000,-3525.73,0.0001041,2]
[422587493,1779126647000,-709.25,0.0001041,2]
[422587498,1779126647000,-2288.18,0.0001041,2]
[422587517,1779127595000,163.0764904,3.487e-05,2]
[422587576,1779127832000,-3348.54815372,7.615e-05,2]
[422587563,1779127832000,-382.35088409,7.615e-05,2]
[422587665,1779127838000,-260.331,7.742e-05,2]
[422587663,1779127838000,-336.99607122,7.692e-05,2]
[422587661,1779127838000,-1269.10096219,7.615e-05,2]
[422587678,1779127838000,-88.99408862,7.798e-05,2]
[422587676,1779127838000,-411.00591138,7.798e-05,2]
[422587680,1779127838000,-38526.00591137,7.9e-05,2]
[422587670,1779127838000,-1200.0,7.797e-05,2]
[422587672,1779127838000,-500.0,7.798e-05,2]
[422587669,1779127838000,-300.0,7.797e-05,2]
[422587674,1779127838000,-500.0,7.798e-05,2]
[422587696,1779127838000,-1874.25757303,7.94e-05,2]
[422587694,1779127838000,-867383.8952872,7.9e-05,2]
[422587691,1779127838000,-60989.53051027,7.9e-05,2]
[422587698,1779127838000,-2173.34967383,7.94e-05,2]
[422587667,1779127838000,-300.0,7.797e-05,2]
[422587796,1779127839000,-534.46,8.219e-05,2]
[422587785,1779127839000,-500.0,8.219e-05,2]
[422587782,1779127839000,-572.91,8.219e-05,2]
[422587781,1779127839000,-500.0,8.219e-05,2]
[422587779,1779127839000,-500.0,8.219e-05,2]
[422587770,1779127839000,-500.0,8.219e-05,2]
[422587766,1779127839000,-500.0,8.219e-05,2]
[422587777,1779127839000,-500.0,8.219e-05,2]
[422587775,1779127839000,-589.46,8.219e-05,2]
[422587763,1779127839000,-500.0,8.219e-05,2]
[422587765,1779127839000,-500.0,8.219e-05,2]
[422587799,1779127839000,-500.0,8.219e-05,2]
[422587768,1779127839000,-899.53,8.219e-05,2]
[422587797,1779127839000,-500.0,8.219e-05,2]
[422587815,1779127839000,-500.0,8.219e-05,2]
[422587784,1779127839000,-500.0,8.219e-05,2]
[422587803,1779127839000,-919.11,8.219e-05,2]
[422587789,1779127839000,-822.99,8.219e-05,2]
[422587801,1779127839000,-1126.22,8.219e-05,2]
[422587793,1779127839000,-529.02,8.219e-05,2]
[422587791,1779127839000,-500.0,8.219e-05,2]
[422587805,1779127839000,-1002.27,8.219e-05,2]
[422587809,1779127839000,-500.0,8.219e-05,2]
[422587807,1779127839000,-1044.68,8.219e-05,2]
[422587813,1779127839000,-375.41396411,8.219e-05,2]
[422587811,1779127839000,-500.0,8.219e-05,2]
[422587772,1779127839000,-500.0,8.219e-05,2]
[422587822,1779127839000,-765.54,8.219e-05,2]
[422587787,1779127839000,-500.0,8.219e-05,2]
[422587760,1779127839000,-500.0,8.219e-05,2]
[422587734,1779127839000,-623.27251851,8.219e-05,2]
[422587758,1779127839000,-500.0,8.219e-05,2]
[422587700,1779127839000,-699.80138469,8e-05,2]
[422587704,1779127839000,-1695.7227349,8e-05,2]
[422587702,1779127839000,-1521.37111796,8e-05,2]
[422587706,1779127839000,-1803.99024608,8e-05,2]
[422587708,1779127839000,-4511.91495895,8e-05,2]
[422587712,1779127839000,-4079.25765256,8e-05,2]
[422587722,1779127839000,-500.0,8.219e-05,2]
[422587720,1779127839000,-587.1304991,8.219e-05,2]
[422587724,1779127839000,-500.0,8.219e-05,2]
[422587718,1779127839000,-1123.724,8.219e-05,2]
[422587726,1779127839000,-500.0,8.219e-05,2]
[422587710,1779127839000,-4603.05986838,8e-05,2]
[422587714,1779127839000,-4944.57226543,8e-05,2]
[422587756,1779127839000,-500.0,8.219e-05,2]
[422587716,1779127839000,-188.96801719,8e-05,2]
[422587730,1779127839000,-500.0,8.219e-05,2]
[422587732,1779127839000,-500.0,8.219e-05,2]
[422587826,1779127839000,-500.0,8.219e-05,2]
[422587744,1779127839000,-539.04,8.219e-05,2]
[422587736,1779127839000,-500.0,8.219e-05,2]
[422587748,1779127839000,-827.84,8.219e-05,2]
[422587746,1779127839000,-500.0,8.219e-05,2]
[422587750,1779127839000,-500.0,8.219e-05,2]
[422587738,1779127839000,-500.0,8.219e-05,2]
[422587742,1779127839000,-500.0,8.219e-05,2]
[422587740,1779127839000,-500.0,8.219e-05,2]
[422587752,1779127839000,-500.0,8.219e-05,2]
[422587754,1779127839000,-500.0,8.219e-05,2]
[422587728,1779127839000,-500.0,8.219e-05,2]
[422587828,1779127839000,-904.16,8.219e-05,2]
[422587783,1779127839000,-500.0,8.219e-05,2]
[422587830,1779127839000,-500.0,8.219e-05,2]
[422587901,1779127839000,-500.0,8.219e-05,2]
[422587886,1779127839000,-714.43,8.219e-05,2]
[422587888,1779127839000,-1067.09,8.219e-05,2]
[422587890,1779127839000,-500.0,8.219e-05,2]
[422587894,1779127839000,-938.67,8.219e-05,2]
[422587905,1779127839000,-1051.8,8.219e-05,2]